bitfinex-derivatives/quotes_SOLF0:USTF0_20251101
["timestamp","ask_amount","ask_price","bid_price","bid_amount"]
[1762006002803,4.0009289,185.47,185.44,2.77]
[1762006002991,4.0009289,185.46,185.44,2.77]
[1762006003191,0.08,185.48,185.44,2.77]
[1762006003397,4.00106153,185.47,185.44,2.77]
[1762006003598,4.00106153,185.46,185.44,2.77]
[1762006003897,0.08,185.48,185.44,2.77]
[1762006004200,4.00136353,185.47,185.45,2.77]
[1762006004498,4.00136353,185.46,185.45,2.77]
[1762006004800,0.08,185.53,185.45,2.77]
[1762006004998,4.14349308,185.52,185.47,2.77]
[1762006005199,4.14349308,185.51,185.48,2.77]
[1762006005398,0.08,185.53,185.48,2.77]
[1762006005592,6.81324104,185.52,185.48,2.77]
[1762006005901,4.14324104,185.51,185.48,2.77]
[1762006010197,2.65,185.55,185.5,2.83]
[1762006010402,6.79499949,185.54,185.5,2.83]
[1762006010701,4.14499949,185.53,185.5,2.83]
[1762006011100,4.14499949,185.52,185.5,2.83]
[1762006011400,2.65,185.54,185.5,2.83]
[1762006011596,4.16014668,185.53,185.5,2.83]
[1762006011795,4.16014668,185.52,185.5,2.83]
[1762006011990,2.65,185.54,185.5,2.83]
[1762006012196,4.16014811,185.53,185.5,2.83]
[1762006012399,4.16014811,185.52,185.5,2.83]
[1762006012603,2.65,185.54,185.5,2.83]
[1762006012900,4.16035914,185.53,185.5,2.83]
[1762006013090,4.16035914,185.52,185.5,2.83]
[1762006013297,2.65,185.54,185.5,2.83]
[1762006013505,2.65,185.52,185.5,2.83]
[1762006013895,2.65,185.52,185.49,5.02841273]
[1762006013896,2.65,185.52,185.48,5.02841273]
[1762006014099,6.80986661,185.51,185.48,2.83]
[1762006014293,4.1612534,185.5,185.48,2.83]
[1762006015491,2.65,185.49,185.47,5.02841273]
[1762006015694,2.65,185.49,185.46,5.02841273]
[1762006015894,2.65,185.49,185.45,5.02841273]
[1762006016100,3.2711393,185.58,185.45,5.02841273]
[1762006016101,2.65,185.47,185.45,5.02841273]
[1762006016300,2.65,185.47,185.43,5.02841273]
[1762006016495,2.65,185.45,185.43,5.02841273]
[1762006018700,2.65,185.45,185.42,5.02841273]
[1762006018908,2.65,185.45,185.42,7.85841273]
[1762006019205,3.89698452,185.44,185.42,7.85841273]
[1762006019405,2.65,185.45,185.42,7.85841273]
[1762006019703,3.89698526,185.44,185.42,7.85841273]
[1762006020005,2.65,185.45,185.42,7.85841273]
[1762006020308,3.89698526,185.44,185.42,7.85841273]
[1762006020498,2.65,185.45,185.42,7.85841273]
[1762006020699,6.54662438,185.44,185.42,7.85841273]
[1762006021004,2.65,185.44,185.42,5.02841273]
[1762006023507,6.54361739,185.43,185.41,5.02841273]
[1762006023707,2.65,185.43,185.41,5.02841273]
[1762006024303,2.65,185.43,185.41,7.85841273]
[1762006024902,2.65,185.47,185.42,2.83]
[1762006025106,8.05221348,185.46,185.43,2.83]
[1762006025306,3.89356221,185.45,185.44,2.83]
[1762006027499,2.65,185.49,185.44,2.83]
[1762006027706,10.70751495,185.48,185.44,2.83]
[1762006027900,8.05751495,185.47,185.44,2.83]
[1762006028101,3.89670633,185.46,185.44,2.83]
[1762006028301,2.65,185.48,185.45,2.83]
[1762006028510,8.0575163,185.47,185.45,2.83]
[1762006028711,3.89670698,185.46,185.45,2.83]
[1762006029512,2.65,185.45,185.43,5.02841273]
[1762006030310,2.65,185.45,185.43,7.85841273]
[1762006030510,2.65,185.49,185.43,7.85841273]
[1762006030712,2.65,185.47,185.44,2.83]
[1762006030914,3.8965758,185.46,185.44,2.83]
[1762006031105,4.7444333,185.5,185.44,2.83]
[1762006031307,10.70772504,185.49,185.45,2.83]
[1762006031607,8.05772504,185.48,185.45,2.83]
[1762006031806,8.05772504,185.47,185.45,2.83]
[1762006032007,3.89697745,185.46,185.45,2.83]
[1762006033013,2.65,185.49,185.45,7.85841273]
[1762006033216,10.7107813,185.48,185.45,7.85841273]
[1762006033414,3.89850876,185.47,185.45,7.85841273]
[1762006033614,2.65,185.48,185.45,7.85841273]
[1762006033815,3.89870633,185.47,185.45,7.85841273]
[1762006034011,2.65,185.48,185.46,2.83]
[1762006034210,3.89883226,185.47,185.46,2.83]
[1762006037416,8.06321669,185.47,185.46,2.83]
[1762006039019,3.89883226,185.47,185.46,7.85841273]
[1762006039319,8.06493303,185.47,185.46,7.85841273]
[1762006041012,3.89883226,185.47,185.46,7.85841273]
[1762006041207,8.06444938,185.47,185.46,7.85841273]
[1762006043632,10.71444938,185.47,185.46,5.02841273]
[1762006044139,10.71445116,185.47,185.46,5.02841273]
[1762006044835,10.71445116,185.47,185.45,5.02841273]
[1762006045027,8.06445116,185.46,185.45,5.02841273]
[1762006046337,10.71445116,185.46,185.45,5.02841273]
[1762006046840,8.06445116,185.46,185.45,5.02841273]
[1762006048340,8.06445116,185.46,185.44,2.71]
[1762006048533,3.89883226,185.45,185.44,2.71]
[1762006050335,10.71631625,185.45,185.42,9.43600907]
[1762006050536,3.89883226,185.44,185.43,2.71]
[1762006052538,2.65,185.48,185.43,9.43600907]
[1762006052843,2.65,185.46,185.45,5.0412296]
[1762006053149,10.70563469,185.46,185.45,5.0412296]
[1762006054344,10.70563469,185.46,185.44,2.71]
[1762006054546,3.88663605,185.45,185.44,2.71]
[1762006054740,3.88663605,185.45,185.43,6.72600907]
[1762006054942,2.65,185.45,185.43,9.43600907]
[1762006055346,2.0944333,185.49,185.43,9.43600907]
[1762006055546,2.65,185.47,185.46,5.04297161]
[1762006055736,10.70827488,185.47,185.46,5.04297161]
[1762006056334,10.70827488,185.47,185.44,9.43600907]
[1762006056534,8.05827488,185.46,185.45,2.71]
[1762006058647,10.70827488,185.46,185.44,9.43600907]
[1762006058945,8.05827488,185.45,185.44,9.43600907]
[1762006060147,8.05827488,185.45,185.44,2.71]
[1762006064251,8.06463219,185.45,185.44,2.71]
[1762006064745,3.89389063,185.45,185.44,3.79]
[1762006065053,2.0944333,185.52,185.45,2.71]
[1762006065246,8.07143249,185.51,185.5,5.04890587]
[1762006066353,10.73143249,185.51,185.5,5.04890587]
[1762006069363,8.07143249,185.51,185.5,7.87890587]
[1762006069658,8.07143249,185.51,185.5,2.83]
[1762006078269,8.07143249,185.51,185.5,7.87056448]
[1762006078471,8.07143249,185.51,185.5,5.04056448]
[1762006079254,10.73143249,185.51,185.5,5.04056448]
[1762006080068,10.731483,185.51,185.5,5.04056448]
[1762006081061,2.66,185.5,185.49,5.04056448]
[1762006081262,10.731483,185.5,185.49,5.04056448]
[1762006082057,8.071483,185.5,185.49,5.04056448]
[1762006082266,8.071483,185.5,185.49,2.83]
[1762006082465,3.89111953,185.5,185.49,2.83]
[1762006086682,2.66,185.49,185.48,6.7318745]
[1762006087283,2.66,185.5,185.48,6.7318745]
[1762006088177,2.66,185.5,185.49,5.03758961]
[1762006088382,10.72827706,185.5,185.49,5.03758961]
[1762006088579,10.72827706,185.5,185.47,9.5618745]
[1762006088770,3.88952248,185.49,185.48,2.83]
[1762006088974,2.70029878,185.51,185.48,9.5618745]
[1762006089479,3.88991156,185.5,185.48,9.5618745]
[1762006089780,2.70029878,185.51,185.48,9.5618745]
[1762006090079,3.88989604,185.5,185.48,9.5618745]
[1762006090282,2.70029878,185.51,185.48,9.5618745]
[1762006090481,2.66,185.5,185.48,9.5618745]
[1762006098187,3.89088321,185.49,185.48,9.5618745]
[1762006098688,2.66,185.5,185.48,9.5618745]
[1762006099083,3.89076899,185.49,185.48,9.5618745]
[1762006105288,3.89076899,185.49,185.48,2.83]
[1762006107294,8.0522666,185.49,185.48,2.83]
[1762006109197,8.0536734,185.49,185.48,2.83]
[1762006111094,2.66,185.48,185.47,10.09781175]
[1762006111392,2.66,185.48,185.38,16.71506453]
[1762006111393,2.66,185.47,185.38,16.2570895]
[1762006111588,2.66,185.45,185.38,2.82]
[1762006111789,2.66,185.43,185.38,2.82]
[1762006111994,2.66,185.41,185.38,2.82]
[1762006112184,4.72051254,185.4,185.38,2.82]
[1762006112389,4.72051254,185.39,185.38,2.82]
[1762006114102,4.51972259,185.39,185.38,2.82]
[1762006121104,4.51972259,185.39,185.38,7.85411634]
[1762006122003,0.03516786,185.41,185.38,2.82]
[1762006122210,0.03516786,185.41,185.4,2.83]
[1762006122504,4.54181158,185.41,185.4,2.83]
[1762006125598,2.67,185.4,185.39,5.03371984]
[1762006125804,4.50664372,185.4,185.39,2.83]
[1762006126106,4.50664372,185.4,185.39,7.86371984]
[1762006127104,4.50664372,185.4,185.39,5.03371984]
[1762006127709,4.50664372,185.4,185.38,7.78371984]
[1762006127900,4.50664372,185.39,185.38,2.75]
[1762006128708,7.16664372,185.39,185.37,5.03371984]
[1762006128912,2.66,185.39,185.37,7.78371984]
[1762006129210,2.66,185.4,185.37,7.78371984]
[1762006129412,4.54110352,185.39,185.37,7.78371984]
[1762006129607,2.66,185.4,185.37,7.78371984]
[1762006129811,4.54110352,185.39,185.37,7.78371984]
[1762006130013,2.66,185.4,185.37,7.78371984]
[1762006130210,4.54110352,185.39,185.37,7.78371984]
[1762006130412,2.66,185.4,185.37,7.78371984]
[1762006130611,7.20075033,185.39,185.37,7.78371984]
[1762006130913,2.66,185.39,185.37,7.78371984]
[1762006131207,4.54020578,185.38,185.37,5.03371984]
[1762006131514,4.54020578,185.38,185.36,7.78371984]
[1762006131703,2.66,185.39,185.36,7.78371984]
[1762006131903,4.54016094,185.38,185.36,7.78371984]
[1762006132106,2.66,185.39,185.36,7.78371984]
[1762006132305,4.53966783,185.38,185.36,7.78371984]
[1762006132506,2.66,185.39,185.37,2.75]
[1762006132707,4.53966668,185.38,185.37,2.75]
[1762006136815,0.03516786,185.41,185.37,7.77733545]
[1762006137001,4.53904411,185.4,185.38,2.75]
[1762006137207,0.03516786,185.41,185.38,7.77733545]
[1762006137410,4.53982657,185.4,185.39,2.75]
[1762006137608,4.50948755,185.4,185.39,2.75]
[1762006138515,7.16948755,185.4,185.38,5.02733545]
[1762006138711,4.50899668,185.39,185.37,7.77733545]
[1762006138917,2.66,185.39,185.37,5.02733545]
[1762006139114,2.66,185.39,185.36,5.02733545]
[1762006139514,2.66,185.39,185.36,7.77733545]
[1762006139818,7.16855307,185.38,185.36,7.77733545]
[1762006140019,2.66,185.38,185.36,7.77733545]
[1762006141118,2.66,185.38,185.36,5.02733545]
[1762006141711,4.89156786,185.41,185.36,7.77733545]
[1762006142015,4.50916356,185.4,185.37,7.77733545]
[1762006142215,4.50916356,185.39,185.38,2.75]
[1762006144624,4.50916356,185.39,185.37,7.77733545]
[1762006144816,2.69516786,185.41,185.37,7.77733545]
[1762006145017,7.17472965,185.4,185.37,7.77733545]
[1762006145217,4.51472965,185.39,185.37,7.77733545]
[1762006145424,4.51472965,185.38,185.37,7.77733545]
[1762006145922,2.66,185.37,185.36,5.02733545]
[1762006146220,7.17472965,185.37,185.36,5.02733545]
[1762006146418,4.51472965,185.37,185.36,5.02733545]
[1762006146723,7.17472965,185.37,185.36,5.02733545]
[1762006146926,2.66,185.36,185.35,5.02733545]
[1762006147128,7.17472965,185.36,185.35,5.02733545]
[1762006147513,7.17472965,185.36,185.34,7.77733545]
[1762006147714,4.51472965,185.35,185.34,7.77733545]
[1762006149014,4.51472965,185.35,185.34,5.02733545]
[1762006150922,4.51472965,185.35,185.34,7.77733545]
[1762006152223,7.17472965,185.35,185.34,5.03635744]
[1762006152423,2.66,185.34,185.33,81.25635744]
[1762006152623,7.17472965,185.34,185.33,81.25635744]
[1762006154322,2.66,185.34,185.33,81.25635744]
[1762006154522,7.17934583,185.34,185.33,81.25635744]
[1762006154722,2.66,185.34,185.33,81.25635744]
[1762006154926,7.17874483,185.34,185.33,76.22]
[1762006155229,2.66,185.34,185.33,76.22]
[1762006155630,7.18092259,185.34,185.33,76.22]
[1762006155827,2.66,185.34,185.33,76.22]
[1762006156029,9.27658825,185.34,185.33,76.22]
[1762006156226,10.35658825,185.34,185.33,76.22]
[1762006156420,2.66,185.33,185.3,5.03635744]
[1762006156622,2.66,185.31,185.3,5.03635744]
[1762006156823,4.52006071,185.31,185.3,5.03635744]
[1762006157020,4.52006071,185.31,185.29,5.03635744]
[1762006157330,4.52006071,185.3,185.29,7.87635744]
[1762006157526,4.52006071,185.3,185.29,5.03635744]
[1762006157828,4.52006071,185.3,185.28,81.25635744]
[1762006157829,7.18006071,185.3,185.28,81.25635744]
[1762006158028,7.18006071,185.29,185.28,81.25635744]
[1762006158229,7.18006071,185.29,185.28,76.22]
[1762006162034,7.18006071,185.29,185.21,5.03635744]
[1762006162035,4.8599,185.27,185.21,5.03635744]
[1762006162229,2.67,185.25,185.22,76.24]
[1762006162540,7.19006071,185.24,185.22,76.24]
[1762006162837,4.52006071,185.23,185.22,76.24]
[1762006163239,2.67,185.24,185.22,78.99]
[1762006163432,4.49222222,185.23,185.19,2.75]
[1762006163632,2.67,185.23,185.2,78.99]
[1762006164034,4.8599,185.27,185.21,2.75]
[1762006164035,2.67,185.26,185.21,2.75]
[1762006164238,2.67,185.24,185.21,2.75]
[1762006164538,4.4921357,185.23,185.21,2.75]
[1762006164734,2.67,185.24,185.21,2.75]
[1762006164936,7.5299,185.27,185.21,2.75]
[1762006165132,4.48957706,185.26,185.21,2.75]
[1762006165327,4.48957706,185.25,185.21,2.75]
[1762006165538,2.67,185.27,185.21,2.75]
[1762006165735,7.15726989,185.26,185.21,2.75]
[1762006165938,2.67,185.24,185.21,2.75]
[1762006166139,2.67,185.24,185.2,78.99]
[1762006166537,2.67,185.23,185.2,76.24]
[1762006166934,2.67,185.21,185.2,76.24]
[1762006167437,7.15012655,185.21,185.2,76.24]
[1762006170429,4.48012655,185.21,185.2,76.24]
[1762006170827,7.15012655,185.21,185.2,76.24]
[1762006175933,2.67,185.19,185.14,2.75]
[1762006176239,2.67,185.17,185.14,2.75]
[1762006177048,7.13035194,185.16,185.14,2.75]
[1762006177346,2.67,185.16,185.12,30.33]
[1762006177644,2.67,185.14,185.12,27.58]
[1762006178534,2.67,185.14,185.1,9.34319449]
[1762006178739,7.12517643,185.13,185.1,12.09319449]
[1762006179045,4.45517643,185.12,185.1,12.09319449]
[1762006179246,2.67,185.13,185.1,9.34319449]
[1762006179448,4.45258552,185.12,185.1,9.34319449]
[1762006179643,2.67,185.13,185.1,9.34319449]
[1762006179844,4.45258146,185.12,185.1,9.34319449]
[1762006180046,4.45226831,185.11,185.1,9.34319449]
[1762006182254,7.12226831,185.11,185.1,9.34319449]
[1762006182948,11.98626831,185.11,185.1,9.34319449]
[1762006185358,13.06626831,185.11,185.1,0.36074493]
[1762006185647,13.06626831,185.11,185.1,4.493e-05]
[1762006186055,2.67,185.02,184.92,2.09652754]
[1762006186350,2.68,185.0,184.96,2.78]
[1762006186744,4.43588942,184.99,184.96,2.78]
[1762006186948,2.68,185.0,184.96,2.78]
[1762006187152,4.43588942,184.99,184.96,2.78]
[1762006187451,2.68,185.0,184.96,2.78]
[1762006187659,4.43353425,184.99,184.96,2.78]
[1762006187842,2.68,185.0,184.96,2.78]
[1762006188048,4.43353425,184.99,184.96,2.78]
[1762006188351,2.68,185.0,184.96,2.78]
[1762006188549,2.68,184.98,184.93,2.78]
[1762006188740,7.11098024,184.97,184.93,2.78]
[1762006188947,2.68,184.97,184.93,2.78]
[1762006189357,4.42815724,184.96,184.93,2.78]
[1762006189655,2.68,184.97,184.93,2.78]
[1762006189859,4.42769063,184.96,184.93,2.78]
[1762006190159,4.42769063,184.95,184.93,2.78]
[1762006190362,2.68,184.99,184.93,2.78]
[1762006190658,7.10596367,184.98,184.93,2.78]
[1762006190856,304.09454811,185.38,184.93,2.78]
[1762006190857,4.42596367,184.97,184.93,2.78]
[1762006191052,4.77652754,185.07,184.94,2.78]
[1762006191246,2.68,185.05,184.99,2.09652754]
[1762006191448,7.10935363,185.04,184.97,2.09652754]
[1762006191654,4.42935363,185.03,184.98,2.78]
[1762006191958,7.10935363,185.02,184.98,2.78]
[1762006192259,7.10935363,185.01,184.95,2.78]
[1762006192458,7.10935363,185.0,184.95,2.78]
[1762006192660,4.42935363,184.99,184.95,2.78]
[1762006192845,4.42935363,184.98,184.95,2.78]
[1762006193051,7.10935363,184.97,184.93,2.78]
[1762006193348,75.6556,185.13,184.93,2.78]
[1762006193349,4.42935363,184.96,184.93,2.78]
[1762006193554,4.42935363,184.95,184.93,2.78]
[1762006193755,2.68,185.0,184.93,2.78]
[1762006193951,4.3960699,184.99,184.93,2.78]
[1762006194157,7.0760699,184.98,184.93,2.78]
[1762006194353,4.3960699,184.97,184.93,2.78]
[1762006194554,4.39699163,184.96,184.94,2.78]
[1762006194751,2.68,185.02,184.94,2.78]
[1762006195060,4.396825,185.01,184.94,2.78]
[1762006195255,4.396825,185.0,184.94,2.78]
[1762006195457,7.076825,184.99,184.94,2.78]
[1762006195654,4.396825,184.98,184.94,2.78]
[1762006195859,4.396825,184.97,184.94,2.78]
[1762006196061,4.396825,184.96,184.94,2.78]
[1762006196261,4.396825,184.95,184.94,2.78]
[1762006197167,7.5464,185.02,184.94,2.78]
[1762006197362,4.39929997,185.01,184.94,2.78]
[1762006197568,7.5464,185.02,184.94,2.78]
[1762006197569,4.39929997,185.0,184.94,2.78]
[1762006197763,4.39929997,184.99,184.94,2.78]
[1762006198070,4.39929997,184.98,184.95,2.78]
[1762006198262,4.39929997,184.97,184.95,2.78]
[1762006198458,7.5459,185.05,184.96,2.78]
[1762006198664,2.68,185.03,184.96,2.78]
[1762006200458,2.68,185.01,184.92,2.78]
[1762006201159,2.68,185.01,184.93,2.78]
[1762006201974,9.64232754,185.05,184.95,2.78]
[1762006202270,2.68,185.04,184.95,2.78]
[1762006203273,2.68,185.0,184.91,2.78]
[1762006203771,2.68,184.97,184.88,2.78]
[1762006204364,2.68,184.95,184.88,2.78]
[1762006205168,2.68,184.93,184.88,2.78]
[1762006205471,2.68,184.93,184.82,112.8915]
[1762006205472,2.68,184.93,184.83,2.78]
[1762006205768,2.68,184.91,184.83,2.78]
[1762006206965,4.8696,184.9,184.83,2.78]
[1762006207179,7.5496,184.9,184.83,2.78]
[1762006207872,6.96532754,184.93,184.83,2.78]
[1762006208076,2.68,184.92,184.83,2.78]
[1762006208475,7.5493,184.92,184.83,2.78]
[1762006208675,2.68,184.91,184.83,2.78]
[1762006209578,2.68,184.89,184.83,2.78]
[1762006209779,2.68,184.89,184.83,4.87652754]
[1762006210672,4.8693,184.91,184.84,2.78]
[1762006210876,4.13469363,184.9,184.84,2.78]
[1762006211078,2.68,184.93,184.84,2.78]
[1762006211278,6.81389182,184.92,184.84,2.78]
[1762006211477,4.13389182,184.91,184.84,2.78]
[1762006211675,4.13389182,184.9,184.84,2.78]
[1762006211975,2.68,184.95,184.87,2.78]
[1762006212181,2.68,184.93,184.87,2.78]
[1762006212478,2.68,184.93,184.8,0.94135469]
[1762006212479,2.68,184.9,184.83,6.07199565]
[1762006213683,4.13635201,184.89,184.83,6.07199565]
[1762006213881,2.68,184.9,184.83,6.07199565]
[1762006214073,4.13635077,184.89,184.83,6.07199565]
[1762006214274,2.68,184.9,184.83,6.07199565]
[1762006214475,4.13662424,184.89,184.83,6.07199565]
[1762006214690,2.68,184.9,184.83,6.07199565]
[1762006214877,4.13662424,184.89,184.83,6.07199565]
[1762006215182,2.68,184.9,184.83,6.07199565]
[1762006215372,4.13581274,184.89,184.83,6.07199565]
[1762006215574,2.68,184.87,184.78,6.07199565]
[1762006215867,4.13581274,184.86,184.79,2.78]
[1762006216068,4.13581274,184.85,184.79,2.78]
[1762006216270,2.67,184.86,184.79,2.78]
[1762006216474,3.29199565,184.91,184.79,2.78]
[1762006216475,6.80558009,184.85,184.79,2.78]
[1762006216670,4.13558009,184.84,184.79,2.78]
[1762006216869,2.67,184.85,184.79,2.78]
[1762006217083,4.13516575,184.84,184.79,2.78]
[1762006217282,4.8703,184.88,184.79,2.78]
[1762006217479,4.13567552,184.87,184.79,2.78]
[1762006217776,4.13567552,184.86,184.8,2.77]
[1762006217981,2.67,184.89,184.8,2.77]
[1762006218287,4.13733602,184.88,184.8,2.77]
[1762006218474,2.67,184.89,184.8,2.77]
[1762006218785,4.11688471,184.88,184.8,2.77]
[1762006218986,4.11688471,184.87,184.81,2.77]
[1762006219277,2.67,184.89,184.81,2.77]
[1762006219486,4.11884138,184.88,184.81,2.77]
[1762006219687,4.11884138,184.87,184.81,2.77]
[1762006219987,2.67,184.89,184.81,2.77]
[1762006220173,2.67,184.87,184.81,2.77]
[1762006220374,85.4445,185.0,184.77,8.16469565]
[1762006220375,2.68,184.85,184.77,8.16469565]
[1762006220574,2.68,184.85,184.77,10.98469565]
[1762006220982,2.68,184.85,184.78,2.82]
[1762006221482,2.68,184.83,184.75,2.82]
[1762006221786,4.12182193,184.82,184.75,2.82]
[1762006222078,4.12037468,184.81,184.75,2.82]
[1762006222273,2.68,184.83,184.75,2.82]
[1762006222474,4.12133396,184.82,184.75,2.82]
[1762006222775,2.68,184.83,184.75,2.82]
[1762006222969,4.12154203,184.82,184.75,2.82]
[1762006223178,4.12007957,184.81,184.75,2.82]
[1762006223385,2.68,184.83,184.75,2.82]
[1762006223591,4.12211156,184.82,184.75,2.82]
[1762006223887,4.12211156,184.81,184.75,2.82]
[1762006224085,7.5516,184.83,184.75,2.82]
[1762006224291,6.80089751,184.82,184.75,2.82]
[1762006224482,4.12089751,184.81,184.75,2.82]
[1762006224785,7.5519,184.82,184.75,2.82]
[1762006224986,4.1225441,184.81,184.75,2.82]
[1762006225179,7.5519,184.82,184.75,2.82]
[1762006225384,4.12141246,184.81,184.75,2.82]
[1762006225587,7.5519,184.82,184.75,2.82]
[1762006225788,4.12325725,184.81,184.75,2.82]
[1762006226091,7.5519,184.82,184.75,2.82]
[1762006226281,4.12223397,184.81,184.75,2.82]
[1762006226481,7.5519,184.82,184.75,2.82]
[1762006226683,4.12376312,184.81,184.75,2.82]
[1762006226883,6.80376312,184.8,184.75,2.82]
[1762006227085,2.68,184.8,184.75,2.82]
[1762006227280,4.12479397,184.79,184.75,2.82]
[1762006227484,2.68,184.8,184.75,2.82]
[1762006227685,4.12479397,184.79,184.75,2.82]
[1762006227882,2.68,184.85,184.75,2.82]
[1762006228089,4.12513937,184.84,184.75,2.82]
[1762006228284,2.68,184.82,184.75,2.82]
[1762006228488,6.80513937,184.81,184.75,2.82]
[1762006228691,6.80513937,184.8,184.75,2.82]
[1762006228992,6.80513937,184.79,184.75,2.82]
[1762006229194,2.68,184.82,184.75,2.82]
[1762006229383,4.12672149,184.81,184.75,2.82]
[1762006229584,2.68,184.82,184.75,2.82]
[1762006229585,4.12672149,184.8,184.75,2.82]
[1762006229894,4.12672149,184.79,184.75,2.82]
[1762006230088,2.68,184.82,184.75,2.82]
[1762006230392,4.12823705,184.81,184.75,2.82]
[1762006230592,4.12823705,184.8,184.75,2.82]
[1762006230791,4.12823705,184.79,184.75,2.82]
[1762006230989,2.68,184.82,184.75,2.82]
[1762006231188,4.13048984,184.81,184.75,2.82]
[1762006231493,3.29199565,184.88,184.75,2.82]
[1762006231494,2.68,184.79,184.75,2.82]
[1762006231792,6.81022076,184.78,184.72,17.28871142]
[1762006231989,2.68,184.78,184.72,17.28871142]
[1762006232182,2.68,184.78,184.72,12.41451142]
[1762006232382,4.8722,184.8,184.72,12.41451142]
[1762006232383,2.68,184.76,184.72,12.41451142]
[1762006232584,2.68,184.74,184.72,4.46784844]
[1762006232783,6.80718079,184.73,184.72,4.46784844]
[1762006234291,7.88718079,184.73,184.72,4.46784844]
[1762006234890,6.80718079,184.73,184.72,4.46784844]
[1762006235288,7.88718079,184.73,184.72,4.46784844]
[1762006236694,6.80718079,184.73,184.72,4.46784844]
[1762006237889,4.12718079,184.73,184.72,4.46784844]
[1762006238287,6.80718079,184.73,184.72,4.46784844]
[1762006238595,4.12718079,184.73,184.72,7.28784844]
[1762006238791,4.12718079,184.73,184.72,4.46784844]
[1762006239098,2.68,184.73,184.72,4.46784844]
[1762006239695,5.97199565,184.74,184.72,4.46784844]
[1762006239892,2.68,184.73,184.72,4.46784844]
[1762006240193,6.79679924,184.73,184.72,4.46784844]
[1762006240986,4.11679924,184.73,184.72,4.46784844]
[1762006241293,6.79679924,184.73,184.72,4.46784844]
[1762006245189,4.11679924,184.73,184.72,7.28784844]
[1762006245389,3.29199565,184.74,184.73,2.82]
[1762006245596,5.97199565,184.78,184.72,4.46784844]
[1762006245788,2.68,184.73,184.72,4.46784844]
[1762006245989,6.79938233,184.73,184.72,4.46784844]
[1762006247586,4.11938233,184.73,184.72,4.46784844]
[1762006247991,7.5531,184.77,184.72,7.17784844]
[1762006248187,6.8031164,184.76,184.72,7.17784844]
[1762006248394,4.1231164,184.75,184.72,7.17784844]
[1762006248595,4.1231164,184.74,184.72,4.46784844]
[1762006248802,2.68,184.76,184.72,4.46784844]
[1762006249000,6.78973426,184.75,184.72,4.46784844]
[1762006249293,4.10973426,184.74,184.72,4.46784844]
[1762006249494,2.68,184.75,184.72,4.46784844]
[1762006249804,4.1118621,184.74,184.72,7.17784844]
[1762006249992,2.68,184.77,184.72,7.17784844]
[1762006250188,4.11232453,184.76,184.73,2.71]
[1762006250392,4.11232453,184.75,184.72,4.46784844]
[1762006250700,4.11232453,184.74,184.72,4.46784844]
[1762006251002,2.68,184.78,184.72,7.17784844]
[1762006251297,4.11422434,184.77,184.73,2.71]
[1762006251503,6.79422434,184.76,184.72,4.46784844]
[1762006251699,4.11422434,184.75,184.72,7.17784844]
[1762006252008,4.873,184.77,184.73,2.71]
[1762006252189,4.11609365,184.76,184.73,2.71]
[1762006252393,4.11609365,184.75,184.73,2.71]
[1762006252590,7.5524,184.8,184.73,2.71]
[1762006252799,4.11584747,184.79,184.73,2.71]
[1762006252990,4.11584747,184.78,184.73,2.71]
[1762006253194,2.68,184.83,184.73,2.71]
[1762006253404,6.79869752,184.82,184.73,2.71]
[1762006253701,4.11869752,184.81,184.73,2.71]
[1762006253905,4.11869752,184.8,184.73,2.71]
[1762006254103,4.11869752,184.79,184.73,2.71]